fUSD/lending_fUSD_20250219
["ID","MTS","AMOUNT","RATE_DAILY","PERIOD"]
[353610503,1739957445498,-627.31,0.00013863,2]
[353610504,1739957445508,-1049.1,0.00013863,2]
[353610505,1739957445518,-500.0,0.00013863,2]
[353610507,1739957445529,-500.0,0.00013863,2]
[353610508,1739957445538,-541.32140239,0.00013863,2]
[353610509,1739957445547,-500.0,0.00013863,2]
[353610510,1739957445559,-500.0,0.00013863,2]
[353610511,1739957445570,-500.0,0.00013863,2]
[353610512,1739957445580,-20151.37736384,0.000139,2]
[353610513,1739957445590,-500.0,0.00013915,2]
[353610514,1739957445601,-827.2,0.00013944,2]
[353610515,1739957445611,-774.83,0.00013944,2]
[353610516,1739957445621,-587.22,0.00013944,2]
[353610517,1739957445631,-1389.95,0.00013944,2]
[353610518,1739957445639,-2086.08,0.00013944,2]
[353610519,1739957445649,-981.47,0.00013944,2]
[353610520,1739957445658,-500.0,0.00013944,2]
[353610521,1739957445668,-1141.26,0.00013944,2]
[353610522,1739957445677,-853.54,0.00013944,2]
[353610523,1739957445686,-1547.16,0.00013944,2]
[353610524,1739957445695,-539.54,0.00013944,2]
[353610525,1739957445705,-1000.57,0.00013944,2]
[353610526,1739957445714,-1614.6,0.00013944,2]
[353610527,1739957445723,-3508.55,0.00013944,2]
[353610528,1739957445733,-645.74,0.00013944,2]
[353610529,1739957445743,-645.74,0.00013944,2]
[353610530,1739957445753,-2167.87,0.00013944,2]
[353610531,1739957445762,-500.0,0.00013944,2]
[353610532,1739957445772,-2190.71,0.00013944,2]
[353610533,1739957445781,-883.01,0.00013944,2]
[353610534,1739957445791,-500.0,0.00013944,2]
[353610535,1739957445800,-1967.58,0.00013944,2]
[353610536,1739957445809,-902.44,0.00013944,2]
[353610537,1739957445818,-1557.18,0.00013944,2]
[353610538,1739957445827,-2055.15,0.00013944,2]
[353610539,1739957445837,-566.77,0.00013944,2]
[353610540,1739957445846,-826.88,0.00013944,2]
[353610541,1739957445856,-500.0,0.00013944,2]
[353610542,1739957445866,-500.0,0.00013944,2]
[353610543,1739957445876,-750.63,0.00013944,2]
[353610544,1739957445886,-500.0,0.00013944,2]
[353610546,1739957445897,-500.0,0.00013944,2]
[353610548,1739957445906,-500.0,0.00013944,2]
[353610549,1739957445915,-500.0,0.00013944,2]
[353610550,1739957445926,-500.0,0.00013944,2]
[353610551,1739957445936,-2207.52,0.00013944,2]
[353610553,1739957445947,-500.0,0.00013944,2]
[353610554,1739957445956,-500.0,0.00013944,2]
[353610556,1739957445965,-1770.14,0.00013944,2]
[353610557,1739957445977,-500.0,0.00013944,2]
[353610558,1739957445987,-500.0,0.00013944,2]
[353610559,1739957445997,-500.0,0.00013944,2]
[353610560,1739957446008,-500.0,0.00013944,2]
[353610561,1739957446017,-500.0,0.00013944,2]
[353610562,1739957446026,-1422.8,0.00013944,2]
[353610563,1739957446037,-500.0,0.00013944,2]
[353610564,1739957446047,-500.0,0.00013944,2]
[353610565,1739957446057,-500.0,0.00013944,2]
[353610566,1739957446067,-887.63,0.00013944,2]
[353610567,1739957446079,-763.45,0.00013944,2]
[353610568,1739957446088,-500.0,0.00013944,2]
[353610569,1739957446098,-296.0,0.00013945,13]
[353610570,1739957446108,-483.03860188,0.00013945,2]
[353610571,1739957446118,-568.24,0.00013945,2]
[353610572,1739957446128,-500.0,0.00013945,2]
[353610573,1739957446138,-500.0,0.00013945,2]
[353610574,1739957446148,-500.0,0.00013945,2]
[353610575,1739957446158,-275.7,0.00013945,2]
[353610576,1739957446167,-552.8,0.00013945,2]
[353610577,1739957446176,-794.72,0.00013945,2]
[353610578,1739957446185,-500.0,0.00013945,2]
[353610579,1739957446195,-151.0,0.00013945,2]
[353610580,1739957446204,-151.0,0.00013945,2]
[353610581,1739957446213,-500.0,0.00013945,2]
[353610582,1739957446222,-229.72,0.00013945,2]
[353610583,1739957446232,-525.83641804,0.00013945,2]
[353610584,1739957446243,-744.33,0.00013945,2]
[353610585,1739957446254,-500.0,0.00013945,2]
[353610586,1739957446266,-500.0,0.00013945,2]
[353610587,1739957446279,-507.65215421,0.00013945,2]
[353610588,1739957446291,-500.0,0.00013945,2]
[353610589,1739957446303,-500.0,0.00013945,2]
[353610590,1739957446314,-500.0,0.00013945,2]
[353610591,1739957446324,-500.0,0.00013945,2]
[353610592,1739957446334,-500.0,0.00013945,2]
[353610593,1739957446344,-500.0,0.00013945,2]
[353610594,1739957446354,-187.86,0.00013945,2]
[353610595,1739957446364,-445.33155985,0.00013945,2]
[353610596,1739957446374,-500.0,0.00013945,2]
[353610597,1739957446384,-500.0,0.00013945,2]
[353610598,1739957446394,-582.08,0.00013945,2]
[353610599,1739957446403,-500.0,0.00013945,2]
[353610600,1739957446413,-500.0,0.00013945,2]
[353610601,1739957446423,-500.0,0.00013945,2]
[353610602,1739957446433,-1086.46,0.00013945,2]
[353610603,1739957446443,-852.16,0.00013945,2]
[353610604,1739957446452,-151.0,0.00013945,2]
[353610605,1739957446462,-155.745187,0.00013945,2]
[353610606,1739957446472,-337.04,0.00013945,2]
[353610607,1739957446481,-500.0,0.00013945,2]
[353610608,1739957446491,-500.0,0.00013945,2]
[353610609,1739957446501,-500.0,0.00013945,2]
[353610610,1739957446510,-500.0,0.00013945,2]
[353610611,1739957446519,-566.51,0.00013945,2]
[353610612,1739957446529,-500.0,0.00013945,2]
[353610613,1739957446538,-876.52,0.00013945,2]
[353610614,1739957446552,-500.0,0.00013945,2]
[353610615,1739957446561,-267.12,0.00013945,2]
[353610616,1739957446571,-500.0,0.00013945,2]
[353610617,1739957446580,-694.12,0.00013945,2]
[353610618,1739957446600,-500.0,0.00013945,2]
[353610619,1739957446610,-500.0,0.00013945,2]
[353610620,1739957446620,-496.28375966,0.00013945,2]
[353610621,1739957446631,-616.85,0.00013945,2]
[353610622,1739957446641,-500.0,0.00013945,2]
[353610623,1739957446650,-500.0,0.00013945,2]
[353610624,1739957446659,-3017.52,0.00013945,2]
[353610625,1739957446669,-500.0,0.00013945,2]
[353610626,1739957446679,-278.86,0.00013945,2]
[353610627,1739957446688,-720.19,0.00013945,2]
[353610628,1739957446697,-508.30041806,0.00013945,2]
[353610629,1739957446708,-500.0,0.00013945,2]
[353610630,1739957446718,-258.68,0.00013945,2]
[353610631,1739957446727,-675.84,0.00013945,2]
[353610632,1739957446737,-154.90988496,0.00013945,2]
[353610633,1739957446746,-1284.93,0.00013945,2]
[353610634,1739957446755,-293.22,0.00013945,2]
[353610635,1739957446765,-1020.2,0.00013945,2]
[353610636,1739957446774,-500.0,0.00013945,2]
[353610637,1739957446784,-500.0,0.00013945,2]
[353610638,1739957446795,-500.0,0.00013945,2]
[353610639,1739957446804,-167.04,0.00013945,2]
[353610640,1739957446813,-150.08,0.00013945,2]
[353610641,1739957446823,-500.0,0.00013945,2]
[353610642,1739957446833,-640.32,0.00013945,2]
[353610643,1739957446843,-2649.22,0.00013945,2]
[353610644,1739957446853,-513.40406463,0.00013945,2]
[353610645,1739957446863,-500.0,0.00013945,2]
[353610646,1739957446872,-238.85,0.00013945,2]
[353610647,1739957446882,-500.0,0.00013945,2]
[353610648,1739957446892,-565.74,0.00013945,2]
[353610649,1739957446903,-500.0,0.00013945,2]
[353610650,1739957446913,-500.0,0.00013945,2]
[353610651,1739957446925,-1937.36,0.00013945,2]
[353610652,1739957446934,-500.0,0.00013945,2]
[353610653,1739957446944,-500.0,0.00013945,2]
[353610654,1739957446954,-500.0,0.00013945,2]
[353610655,1739957446963,-661.65,0.00013945,2]
[353610656,1739957446974,-1923.78,0.00013945,2]
[353610657,1739957446987,-500.0,0.00013945,2]
[353610658,1739957446998,-500.0,0.00013945,2]
[353610659,1739957447008,-1499.07,0.00013945,2]
[353610660,1739957447018,-521.22296069,0.00013945,2]
[353610661,1739957447030,-687.68,0.00013945,2]
[353610662,1739957447042,-1705.94,0.00013945,2]
[353610663,1739957447052,-500.0,0.00013945,2]
[353610664,1739957447064,-500.0,0.00013945,2]
[353610665,1739957447075,-500.0,0.00013945,2]
[353610666,1739957447086,-463.06,0.00013945,2]
[353610667,1739957447095,-500.0,0.00013945,2]
[353610668,1739957447106,-500.0,0.00013945,2]
[353610669,1739957447116,-500.0,0.00013945,2]
[353610670,1739957447126,-500.0,0.00013945,2]
[353610671,1739957447136,-500.0,0.00013945,2]
[353610672,1739957447147,-500.0,0.00013945,2]
[353610673,1739957447158,-186.68,0.00013945,2]
[353610674,1739957447168,-2171.31,0.00013945,2]
[353610675,1739957447178,-661.61,0.00013945,2]
[353610676,1739957447188,-889.64,0.00013945,2]
[353610677,1739957447198,-538.22,0.00013945,2]
[353610678,1739957447207,-500.0,0.00013945,2]
[353610679,1739957447217,-577.83,0.00013945,2]
[353610680,1739957447228,-571.64,0.00013945,2]
[353610681,1739957447238,-500.0,0.00013945,2]
[353610682,1739957447248,-681.91,0.00013945,2]
[353610683,1739957447259,-500.0,0.00013945,2]
[353610684,1739957447269,-1520.67,0.00013945,2]
[353610685,1739957447278,-500.0,0.00013945,2]
[353610686,1739957447289,-500.0,0.00013945,2]
[353610687,1739957447299,-500.0,0.00013945,2]
[353610688,1739957447309,-1987.65,0.00013945,2]
[353610689,1739957447319,-576.77,0.00013945,2]
[353610690,1739957447329,-1842.25,0.00013945,2]
[353610691,1739957447339,-506.24,0.00013945,2]
[353610692,1739957447349,-500.0,0.00013945,2]
[353610693,1739957447358,-1152.23,0.00013945,2]
[353610694,1739957447368,-547.06,0.00013945,2]
[353610695,1739957447378,-500.0,0.00013945,2]
[353610696,1739957447387,-500.0,0.00013945,2]
[353610697,1739957447397,-715.88,0.00013945,2]
[353610698,1739957447406,-500.0,0.00013945,2]
[353610699,1739957447416,-1109.67,0.00013945,2]
[353610700,1739957447425,-528.1636163,0.00013945,2]
[353610701,1739957447433,-500.0,0.00013945,2]
[353610702,1739957447441,-351.11,0.00013945,2]
[353610703,1739957447449,-212.82,0.00013945,2]
[353610704,1739957447456,-217.28,0.00013945,2]
[353610705,1739957447465,-267.06,0.00013945,2]
[353610706,1739957447473,-500.0,0.00013945,2]
[353610707,1739957447483,-783.73,0.00013945,2]
[353610708,1739957447493,-4965.72,0.00013945,2]
[353610709,1739957447503,-500.0,0.00013945,2]
[353610710,1739957447512,-542.9,0.00013945,2]
[353610711,1739957447521,-1255.58,0.00013945,2]
[353610712,1739957447531,-500.0,0.00013945,2]
[353610713,1739957447540,-571.6,0.00013945,2]
[353610714,1739957447549,-500.0,0.00013945,2]
[353610715,1739957447562,-595.06,0.00013945,2]
[353610716,1739957447572,-500.0,0.00013945,2]
[353610717,1739957447582,-870.4,0.00013945,2]
[353610718,1739957447591,-500.0,0.00013945,2]
[353610719,1739957447601,-500.0,0.00013945,2]
[353610720,1739957447611,-500.0,0.00013945,2]
[353610721,1739957447621,-1312.22,0.00013945,2]
[353610722,1739957447630,-690.92,0.00013945,2]
[353610723,1739957447639,-500.0,0.00013945,2]
[353610724,1739957447648,-500.0,0.00013945,2]
[353610725,1739957447657,-1038.88,0.00013945,2]
[353610726,1739957447667,-510.11,0.00013945,2]
[353610727,1739957447676,-500.0,0.00013945,2]
[353610728,1739957447685,-500.0,0.00013945,2]
[353610729,1739957447694,-1128.72,0.00013945,2]
[353610730,1739957447704,-685.38,0.00013945,2]
[353610731,1739957447715,-500.0,0.00013945,2]
[353610732,1739957447724,-1630.13,0.00013945,2]
[353610733,1739957447733,-1105.85,0.00013945,2]
[353610734,1739957447743,-500.0,0.00013945,2]
[353610735,1739957447753,-531.86,0.00013945,2]
[353610736,1739957447763,-595.83,0.00013945,2]
[353610737,1739957447773,-735.93,0.00013945,2]
[353610738,1739957447782,-1130.06,0.00013945,2]
[353610739,1739957447792,-743.49,0.00013945,2]
[353610740,1739957447801,-623.46,0.00013945,2]
[353610741,1739957447810,-1482.15,0.00013945,2]
[353610742,1739957447820,-551.14,0.00013945,2]
[353610743,1739957447829,-500.0,0.00013945,2]
[353610744,1739957447839,-511.76850396,0.00013945,2]
[353610745,1739957447849,-1986.52,0.00013945,2]
[353610746,1739957447859,-500.0,0.00013945,2]
[353610747,1739957447869,-596.19,0.00013945,2]
[353610748,1739957447879,-500.0,0.00013945,2]
[353610749,1739957447888,-1429.02,0.00013945,2]
[353610750,1739957447898,-515.56,0.00013945,2]
[353610751,1739957447907,-504.01,0.00013945,2]
[353610752,1739957447917,-1375.73,0.00013945,2]
[353610753,1739957447927,-625.37,0.00013945,2]
[353610754,1739957447938,-751.56,0.00013945,2]
[353610755,1739957447947,-1045.9,0.00013945,2]
[353610756,1739957447957,-500.0,0.00013945,2]
[353610757,1739957447966,-508.19562705,0.00013945,2]
[353610758,1739957447976,-500.0,0.00013945,2]
[353610759,1739957447987,-499.23634287,0.00013945,2]
[353610760,1739957447997,-1195.24,0.00013945,2]
[353610761,1739957448008,-500.0,0.00013945,7]
[353610762,1739957448020,-783.63,0.00013945,2]
[353610763,1739957448031,-923.97,0.00013945,2]
[353610764,1739957448042,-500.0,0.00013945,2]
[353610765,1739957448053,-500.0,0.00013945,2]
[353610766,1739957448067,-500.0,0.00013945,2]
[353610767,1739957448078,-533.29,0.00013945,2]
[353610768,1739957448088,-500.0,0.00013945,2]
[353610769,1739957448098,-561.8,0.00013945,2]
[353610770,1739957448109,-304.55,0.00013945,2]
[353610771,1739957448119,-500.0,0.00013945,2]
[353610772,1739957448130,-500.0,0.00013945,2]
[353610773,1739957448140,-556.13,0.00013945,2]
[353610774,1739957448152,-871.44,0.00013945,2]
[353610775,1739957448163,-500.0,0.00013945,2]
[353610776,1739957448173,-500.0,0.00013945,2]
[353610777,1739957448183,-500.0,0.00013945,2]
[353610778,1739957448194,-500.0,0.00013945,2]
[353610779,1739957448204,-500.0,0.00013945,2]
[353610780,1739957448214,-520.39,0.00013945,2]
[353610781,1739957448224,-500.0,0.00013945,2]
[353610782,1739957448234,-627.31,0.00013945,2]
[353610783,1739957448244,-1049.1,0.00013945,2]
[353610784,1739957448254,-500.0,0.00013945,2]
[353610785,1739957448264,-500.0,0.00013945,2]
[353610786,1739957448275,-500.0,0.00013945,2]
[353610787,1739957448286,-500.0,0.00013945,2]
[353610788,1739957448297,-500.0,0.00013945,2]
[353610789,1739957448307,-645.74,0.00013999,2]
[353610790,1739957448324,-500.0,0.00014026,2]
[353610791,1739957448335,-1987.14,0.00014026,2]
[353610792,1739957448346,-500.0,0.00014026,2]
[353610793,1739957448356,-993.26,0.00014026,2]
[353610794,1739957448366,-1361.76,0.00014026,2]
[353610795,1739957448377,-3328.08,0.00014026,2]
[353610796,1739957448389,-805.91,0.00014026,2]
[353610797,1739957448406,-1648.06,0.00014026,2]
[353610798,1739957448421,-2315.06,0.00014026,2]
[353610799,1739957448430,-569.74,0.00014026,2]
[353610800,1739957448438,-535.92,0.00014026,2]
[353610801,1739957448446,-1009.78,0.00014026,2]
[353610802,1739957448454,-827.2,0.00014026,2]
[353610803,1739957448462,-1857.62,0.00014026,2]
[353610804,1739957448470,-774.83,0.00014026,2]
[353610805,1739957448478,-587.22,0.00014026,2]
[353610806,1739957448487,-1389.95,0.00014026,2]
[353610807,1739957448496,-2086.08,0.00014026,2]
[353610808,1739957448504,-1423.63,0.00014026,2]
[353610809,1739957448513,-981.47,0.00014026,2]
[353610810,1739957448521,-500.0,0.00014026,2]
[353610811,1739957448529,-1141.26,0.00014026,2]
[353610812,1739957448539,-853.54,0.00014026,2]
[353610813,1739957448548,-1547.16,0.00014026,2]
[353610814,1739957448557,-539.54,0.00014026,2]
[353610815,1739957448564,-500.0,0.00014026,2]
[353610816,1739957448572,-1228.63,0.00014026,2]
[353610817,1739957448581,-1000.57,0.00014026,2]
[353610818,1739957448590,-1614.6,0.00014026,2]
[353610819,1739957448597,-3508.55,0.00014026,2]
[353610820,1739957448606,-645.74,0.00014026,2]
[353610821,1739957448615,-645.74,0.00014026,2]
[353610822,1739957448623,-2167.87,0.00014026,2]
[353610823,1739957448631,-500.0,0.00014026,2]
[353610824,1739957448639,-2639.36,0.00014026,2]
[353610825,1739957448648,-2190.71,0.00014026,2]
[353610826,1739957448656,-883.01,0.00014026,2]
[353610827,1739957448664,-515.97,0.00014026,2]
[353610828,1739957448671,-1967.58,0.00014026,2]
[353610829,1739957448679,-902.44,0.00014026,2]
[353610830,1739957448687,-1557.18,0.00014026,2]
[353610831,1739957448694,-2055.15,0.00014026,2]
[353610832,1739957448702,-3073.81,0.00014026,2]
[353610833,1739957448711,-566.77,0.00014026,2]
[353610834,1739957448719,-826.88,0.00014026,2]
[353610835,1739957448727,-1204.91,0.00014026,2]
[353610836,1739957448736,-500.0,0.00014026,2]
[353610837,1739957448745,-500.0,0.00014026,2]
[353610838,1739957448752,-750.63,0.00014026,2]
[353610839,1739957448761,-500.0,0.00014026,2]
[353610840,1739957448771,-500.0,0.00014026,2]
[353610841,1739957448780,-500.0,0.00014026,2]
[353610842,1739957448789,-508.09834272,0.00014026,2]
[353610843,1739957448799,-2207.52,0.00014026,2]
[353610844,1739957448808,-500.0,0.00014026,2]
[353610845,1739957448816,-2021.43,0.00014026,2]
[353610846,1739957448823,-502.3351736,0.00014026,2]
[353610847,1739957448831,-1770.14,0.00014026,2]
[353610848,1739957448839,-500.0,0.00014026,2]
[353610849,1739957448848,-500.0,0.00014026,2]
[353610850,1739957448856,-500.0,0.00014026,2]
[353610851,1739957448864,-201.00985983,0.00014026,2]
[353610852,1739957448871,-1422.8,0.00014026,2]
[353610853,1739957449027,-514.8705701,0.00014026,2]
[353610854,1739957449042,-500.0,0.00014026,2]
[353610855,1739957449055,-500.0,0.00014026,2]
[353610856,1739957449068,-887.63,0.00014026,2]
[353610857,1739957449080,-763.45,0.00014026,2]
[353610858,1739957449094,-568.24,0.00014027,2]
[353610859,1739957449107,-609.62,0.00014027,2]
[353610860,1739957449119,-500.0,0.00014027,2]
[353610861,1739957449131,-500.0,0.00014027,2]
[353610862,1739957449146,-794.72,0.00014027,2]
[353610863,1739957449158,-503.24,0.00014027,2]
[353610864,1739957449170,-500.0,0.00014027,2]
[353610865,1739957449183,-744.33,0.00014027,2]
[353610866,1739957449195,-500.0,0.00014027,2]
[353610867,1739957449207,-500.0,0.00014027,2]
[353610868,1739957449217,-500.0,0.00014027,2]
[353610869,1739957449230,-401.43,0.00014027,2]
[353610870,1739957449241,-500.0,0.00014027,2]
[353610871,1739957449254,-500.0,0.00014027,2]
[353610872,1739957449266,-500.0,0.00014027,2]
[353610873,1739957449278,-539.12,0.00014027,2]
[353610874,1739957449290,-500.0,0.00014027,2]
[353610875,1739957449305,-500.0,0.00014027,2]
[353610876,1739957449316,-450.68,0.00014027,2]
[353610877,1739957449330,-418.93048046,0.00014027,2]
[353610878,1739957449342,-1086.46,0.00014027,2]
[353610879,1739957449352,-852.16,0.00014027,2]
[353610880,1739957449364,-407.02895822,0.00014027,2]
[353610881,1739957449375,-509.8797712,0.00014027,2]
[353610882,1739957449387,-500.0,0.00014027,2]
[353610883,1739957449398,-500.0,0.00014027,2]
[353610884,1739957449408,-500.0,0.00014027,2]
[353610885,1739957449420,-876.52,0.00014027,2]
[353610886,1739957449433,-500.0,0.00014027,2]
[353610887,1739957449446,-500.0,0.00014027,2]
[353610888,1739957449458,-694.12,0.00014027,2]
[353610889,1739957449470,-500.0,0.00014027,2]
[353610890,1739957449483,-468.65,0.00014027,2]
[353610891,1739957449499,-500.0,0.00014027,2]
[353610892,1739957449517,-500.0,0.00014027,2]
[353610893,1739957449528,-500.0,0.00014027,2]
[353610894,1739957449541,-3017.52,0.00014027,2]
[353610895,1739957449553,-720.19,0.00014027,2]
[353610896,1739957449563,-500.0,0.00014027,2]
[353610897,1739957449573,-675.84,0.00014027,2]
[353610898,1739957449583,-1284.93,0.00014027,2]
[353610899,1739957449593,-1020.2,0.00014027,2]
[353610900,1739957449604,-500.0,0.00014027,2]
[353610901,1739957449615,-172.11,0.00014027,2]
[353610902,1739957449624,-500.0,0.00014027,2]
[353610903,1739957449636,-500.0,0.00014027,2]
[353610904,1739957449648,-640.32,0.00014027,2]
[353610905,1739957449659,-2649.22,0.00014027,2]
[353610906,1739957449671,-500.0,0.00014027,2]
[353610907,1739957449680,-500.0,0.00014027,2]
[353610908,1739957449691,-500.0,0.00014027,2]
[353610909,1739957449702,-500.0,0.00014027,2]
[353610910,1739957449713,-1937.36,0.00014027,2]
[353610911,1739957449726,-500.0,0.00014027,2]
[353610912,1739957449736,-500.0,0.00014027,2]
[353610913,1739957449747,-500.0,0.00014027,2]
[353610914,1739957449759,-661.65,0.00014027,2]
[353610915,1739957449772,-1923.78,0.00014027,2]
[353610916,1739957449785,-500.0,0.00014027,2]
[353610917,1739957449800,-1499.07,0.00014027,2]
[353610918,1739957449812,-687.68,0.00014027,2]
[353610919,1739957449826,-1705.94,0.00014027,2]
[353610920,1739957449838,-590.52,0.00014027,2]
[353610921,1739957449848,-500.0,0.00014027,2]
[353610922,1739957449860,-411.64,0.00014027,2]
[353610923,1739957449872,-500.0,0.00014027,2]
[353610924,1739957449883,-500.0,0.00014027,2]
[353610925,1739957449896,-500.0,0.00014027,2]
[353610926,1739957449907,-500.0,0.00014027,2]
[353610927,1739957449919,-500.0,0.00014027,2]
[353610928,1739957449931,-2171.31,0.00014027,2]
[353610929,1739957449942,-661.61,0.00014027,2]
[353610930,1739957449952,-889.64,0.00014027,2]
[353610931,1739957449962,-538.22,0.00014027,2]
[353610932,1739957449972,-500.0,0.00014027,2]
[353610933,1739957449984,-577.83,0.00014027,2]
[353610934,1739957449994,-571.64,0.00014027,2]
[353610935,1739957450004,-500.0,0.00014027,2]
[353610936,1739957450015,-681.91,0.00014027,2]
[353610937,1739957450026,-500.0,0.00014027,2]
[353610938,1739957450037,-1520.67,0.00014027,2]
[353610939,1739957450049,-500.0,0.00014027,2]
[353610940,1739957450060,-500.0,0.00014027,2]
[353610941,1739957450070,-500.0,0.00014027,2]
[353610942,1739957450081,-1987.65,0.00014027,2]
[353610943,1739957450091,-576.77,0.00014027,2]
[353610944,1739957450101,-1842.25,0.00014027,2]
[353610945,1739957450111,-506.24,0.00014027,2]
[353610946,1739957450121,-500.0,0.00014027,2]
[353610947,1739957450131,-1152.23,0.00014027,2]
[353610948,1739957450141,-547.06,0.00014027,2]
[353610949,1739957450151,-500.0,0.00014027,2]
[353610950,1739957450160,-715.88,0.00014027,2]
[353610951,1739957450169,-500.0,0.00014027,2]
[353610952,1739957450179,-1109.67,0.00014027,2]
[353610953,1739957450188,-500.0,0.00014027,2]
[353610954,1739957450198,-500.0,0.00014027,2]
[353610955,1739957450208,-783.73,0.00014027,2]
[353610956,1739957450217,-4965.72,0.00014027,2]
[353610957,1739957450227,-500.0,0.00014027,2]
[353610958,1739957450236,-542.9,0.00014027,2]
[353610959,1739957450245,-1255.58,0.00014027,2]
[353610960,1739957450255,-500.0,0.00014027,2]
[353610961,1739957450265,-571.6,0.00014027,2]
[353610962,1739957450275,-500.0,0.00014027,2]
[353610963,1739957450285,-595.06,0.00014027,2]
[353610964,1739957450299,-500.0,0.00014027,2]
[353610965,1739957450309,-870.4,0.00014027,2]
[353610966,1739957450318,-214.41201313,0.00014027,2]
[353610967,1739957450328,-500.0,0.00014027,2]
[353610968,1739957450338,-500.0,0.00014027,2]
[353610969,1739957450347,-1312.22,0.00014027,2]
[353610970,1739957450357,-690.92,0.00014027,2]
[353610971,1739957450367,-500.0,0.00014027,2]
[353610972,1739957450376,-500.0,0.00014027,2]
[353610973,1739957450386,-1038.88,0.00014027,2]
[353610974,1739957450395,-510.11,0.00014027,2]
[353610975,1739957450404,-500.0,0.00014027,2]
[353610976,1739957450413,-1128.72,0.00014027,2]
[353610977,1739957450423,-685.38,0.00014027,2]
[353610978,1739957450433,-500.0,0.00014027,2]
[353610979,1739957450443,-1630.13,0.00014027,2]
[353610980,1739957450452,-1105.85,0.00014027,2]
[353610981,1739957450462,-500.0,0.00014027,2]
[353610982,1739957450471,-531.86,0.00014027,2]
[353610983,1739957450481,-595.83,0.00014027,2]
[353610984,1739957450491,-735.93,0.00014027,2]
[353610985,1739957450500,-1130.06,0.00014027,2]
[353610986,1739957450509,-743.49,0.00014027,2]
[353610987,1739957450517,-623.46,0.00014027,2]
[353610988,1739957450529,-1482.15,0.00014027,2]
[353610989,1739957450538,-551.14,0.00014027,2]
[353610990,1739957450547,-500.0,0.00014027,2]
[353610991,1739957450557,-1986.52,0.00014027,2]
[353610992,1739957450566,-500.0,0.00014027,2]
[353610993,1739957450576,-596.19,0.00014027,2]
[353610994,1739957450586,-500.0,0.00014027,2]
[353610995,1739957450596,-1429.02,0.00014027,2]
[353610996,1739957450606,-515.56,0.00014027,2]
[353610997,1739957450616,-504.01,0.00014027,2]
[353610998,1739957450626,-1375.73,0.00014027,2]
[353610999,1739957450635,-625.37,0.00014027,2]
[353611000,1739957450645,-751.56,0.00014027,2]
[353611001,1739957450655,-1045.9,0.00014027,2]
[353611002,1739957450665,-500.0,0.00014027,2]
[353611003,1739957450674,-1195.24,0.00014027,2]
[353611004,1739957450683,-500.0,0.00014027,7]
[353611005,1739957450692,-783.63,0.00014027,2]
[353611006,1739957450702,-923.97,0.00014027,2]
[353611007,1739957450712,-500.0,0.00014027,2]